bitfinex/quotes_SOLUSD_20240725
["timestamp","ask_amount","ask_price","bid_price","bid_amount"]
[1721936599112,0.8022761,168.81,168.7,46.18496876]
[1721936599312,0.8022761,168.81,168.71,21.18494621]
[1721936599522,0.8022761,168.81,168.72,45.0]
[1721936599699,0.8022761,168.81,168.73,21.18493564]
[1721936599900,0.8022761,168.81,168.74,45.0]
[1721936600922,0.8022761,168.81,168.74,51.5493]
[1721936601098,0.8022761,168.81,168.75,20.0]
[1721936601415,0.8022761,168.81,168.76,45.0]
[1721936603802,0.8022761,168.81,168.75,20.0]
[1721936604226,0.8022761,168.81,168.76,45.0]
[1721936605024,0.8022761,168.81,168.75,45.0]
[1721936605923,0.8022761,168.81,168.74,6.5493]
[1721936606304,0.8022761,168.81,168.75,46.1849739]
[1721936606520,0.8022761,168.81,168.75,45.0]
[1721936606725,0.8022761,168.81,168.69,6.1152]
[1721936607027,0.8022761,168.81,168.7,21.18504924]
[1721936607425,0.8022761,168.81,168.7,20.0]
[1721936607812,6.7260761,168.81,168.69,7.30042292]
[1721936608011,0.8022761,168.81,168.69,7.30042292]
[1721936609114,0.8022761,168.81,168.7,20.0]
[1721936609314,0.8022761,168.81,168.71,46.18492588]
[1721936609531,0.8022761,168.81,168.72,20.0]
[1721936609834,0.8022761,168.81,168.73,46.18490651]
[1721936610139,0.8022761,168.81,168.73,45.0]
[1721936610909,0.8022761,168.81,168.74,20.0]
[1721936611111,0.8022761,168.81,168.75,45.0]
[1721936611837,0.8022761,168.81,168.75,46.18490679]
[1721936613043,0.8022761,168.81,168.75,45.0]
[1721936613227,0.8022761,168.81,168.76,20.0]
[1721936613430,0.8022761,168.81,168.77,46.1846906]
[1721936613612,0.8022761,168.81,168.78,20.0]
[1721936613809,0.8022761,168.81,168.79,45.0]
[1721936614012,0.8022761,168.81,168.7,1.1846906]
[1721936614208,0.8022761,168.81,168.71,1.18481461]
[1721936615237,0.8022761,168.81,168.72,16.5651]
[1721936615441,0.8022761,168.81,168.73,21.18447312]
[1721936615717,0.8022761,168.81,168.75,6.2229]
[1721936615932,0.8022761,168.81,168.76,66.18441437]
[1721936616213,0.8022761,168.81,168.76,65.0]
[1721936616414,0.8022761,168.81,168.77,1.18449129]
[1721936617834,0.8022761,168.81,168.76,65.0]
[1721936618742,0.8022761,168.81,168.77,1.18465907]
[1721936618924,0.8022761,168.81,168.76,65.0]
[1721936619350,0.8022761,168.81,168.76,20.0]
[1721936620345,0.8022761,168.81,168.73,21.18477536]
[1721936620543,0.8022761,168.81,168.74,1.18476006]
[1721936620730,0.8022761,168.81,168.74,45.0]
[1721936620931,0.8022761,168.81,168.72,16.5651]
[1721936621145,0.8022761,168.81,168.71,7.52030839]
[1721936621354,0.8022761,168.81,168.7,1.18496645]
[1721936621558,0.8022761,168.81,168.71,1.18496469]
[1721936622344,0.8022761,168.81,168.71,1.18496588]
[1721936622947,0.8022761,168.81,168.71,66.18496588]
[1721936623132,0.8022761,168.81,168.74,6.01]
[1721936623321,0.8022761,168.81,168.75,66.18440343]
[1721936623519,0.8022761,168.81,168.75,66.18444531]
[1721936623851,0.8022761,168.81,168.75,65.0]
[1721936624024,0.8022761,168.81,168.76,1.18471642]
[1721936624351,0.8022761,168.81,168.75,65.0]
[1721936624542,0.8022761,168.81,168.76,1.18472389]
[1721936624743,0.8022761,168.81,168.77,1.18467087]
[1721936625544,0.8022761,168.81,168.77,1.18463646]
[1721936627845,0.8022761,168.81,168.77,66.18463646]
[1721936629228,0.8022761,168.81,168.77,82.60283646]
[1721936629453,380.5,168.91,168.79,27.01]
[1721936629660,380.5,168.92,168.8,66.18410732]
[1721936629951,380.5,168.92,168.81,65.0]
[1721936630130,380.5,168.92,168.82,1.18416561]
[1721936631055,380.5,168.92,168.83,1.18416321]
[1721936632048,380.5,168.92,168.82,1.18416553]
[1721936632252,380.5,168.92,168.83,1.18416608]
[1721936633064,50.1099761,168.98,168.84,6.4034]
[1721936633231,50.1099761,168.98,168.85,66.18402637]
[1721936633862,5.9185,168.97,168.85,65.0]
[1721936634550,5.9185,168.97,168.86,1.18403526]
[1721936634757,5.9185,168.97,168.85,65.0]
[1721936634934,5.9186,168.96,168.86,1.18404113]
[1721936635136,5.9186,168.96,168.85,65.0]
[1721936637261,5.919,168.95,168.85,65.0]
[1721936638141,5.9196,168.93,168.85,65.0]
[1721936638332,27.01,168.95,168.85,20.0]
[1721936638333,5.92,168.92,168.85,20.0]
[1721936638541,32.93,168.92,168.8,20.0]
[1721936638749,380.5,168.91,168.8,20.0]
[1721936639135,380.5,168.91,168.8,21.18436096]
[1721936639742,380.5,168.91,168.81,45.0]
[1721936640054,380.5,168.91,168.82,20.0]
[1721936640244,386.4203,168.91,168.83,45.0]
[1721936640450,386.4203,168.91,168.79,6.3174]
[1721936640757,42.89,168.89,168.75,6.5854]
[1721936640954,5.9217,168.88,168.75,6.5854]
[1721936641169,48.811,168.89,168.75,7.77004826]
[1721936641464,42.89,168.89,168.75,7.77004826]
[1721936641642,15.88,168.89,168.75,34.78004826]
[1721936641969,27.01,168.92,168.75,34.78004826]
[1721936642269,16.0366,168.93,168.78,27.01]
[1721936642441,16.0366,168.93,168.8,15.9702]
[1721936642638,16.0366,168.93,168.81,21.18417656]
[1721936642852,16.0366,168.93,168.82,45.0]
[1721936643052,16.0366,168.93,168.83,21.18429958]
[1721936643338,16.0366,168.93,168.84,45.0]
[1721936643565,16.0366,168.93,168.85,20.0]
[1721936643764,16.0366,168.93,168.86,45.0]
[1721936643942,16.0366,168.93,168.87,20.0]
[1721936644462,16.0366,168.93,168.88,45.0]
[1721936644764,16.0366,168.93,168.87,20.0]
[1721936644972,16.0366,168.93,168.81,21.1841715]
[1721936645139,16.0366,168.93,168.82,45.0]
[1721936645344,15.415,168.97,168.84,6.4729]
[1721936645655,15.415,168.97,168.85,65.0]
[1721936646051,15.415,168.97,168.86,1.18392921]
[1721936646344,15.415,168.97,168.85,66.18390416]
[1721936646846,0.8022761,168.98,168.87,15.0985]
[1721936647049,0.8022761,168.98,168.88,66.18356017]
[1721936647867,0.8022761,168.98,168.91,6.6075]
[1721936648049,0.8022761,168.98,168.92,66.18336496]
[1721936648245,0.8022761,168.98,168.93,1.18336683]
[1721936648447,0.8022761,168.98,168.94,16.2135]
[1721936648764,0.8022761,168.98,168.95,66.18322334]
[1721936648943,0.8022761,168.98,168.96,1.18320705]
[1721936650046,0.8022761,168.98,168.95,65.0]
[1721936650249,0.8022761,168.98,168.96,1.18331432]
[1721936650562,0.8022761,168.98,168.95,20.0]
[1721936650763,0.8022761,168.98,168.96,1.18333774]
[1721936650948,0.8022761,168.98,168.95,20.0]
[1721936651147,0.8022761,168.98,168.96,1.18333609]
[1721936651368,0.8022761,168.98,168.95,21.18319506]
[1721936651669,0.8022761,168.98,168.96,46.18319506]
[1721936651974,0.8022761,168.98,168.97,20.0]
[1721936652162,0.8022761,168.98,168.97,65.0]
[1721936654338,0.8022761,168.98,168.97,20.0]
[1721936654749,0.8022761,168.98,168.92,21.18343661]
[1721936655048,0.8022761,168.98,168.93,1.1834205]
[1721936655968,0.8022761,168.98,168.93,46.1834205]
[1721936656346,0.8022761,168.98,168.94,20.0]
[1721936656671,0.8022761,168.98,168.95,46.18325798]
[1721936656873,0.8022761,168.98,168.96,20.0]
[1721936657165,0.8022761,168.98,168.97,45.0]
[1721936657348,0.8022761,168.98,168.97,65.0]
[1721936658855,0.8022761,168.98,168.97,20.0]
[1721936659068,0.8022761,168.98,168.92,20.0]
[1721936659254,0.8022761,168.98,168.93,1.18335434]
[1721936660480,0.8022761,168.98,168.91,1.18348926]
[1721936661949,0.8022761,168.98,168.91,21.18348926]
[1721936662884,0.8022761,168.98,168.93,27.01]
[1721936663092,0.8022761,168.98,168.94,66.18322423]
[1721936663384,48.9532,169.12,168.94,66.18322423]
[1721936663555,54.8661,169.12,168.96,27.01]
[1721936663755,5.9133,169.11,168.97,66.18301005]
[1721936663996,5.9137,169.1,168.97,66.18301005]
[1721936664284,5.9133,169.11,168.97,66.18301005]
[1721936664479,5.9147,169.07,168.97,66.18301005]
[1721936664672,27.01,169.09,168.97,65.0]
[1721936664875,27.01,169.09,168.98,1.18310311]
[1721936665178,27.01,169.09,168.98,1.18313574]
[1721936665476,48.9532,169.12,168.99,1.18302575]
[1721936665978,48.9532,169.12,168.98,1.18292885]
[1721936666178,5.9133,169.11,168.99,1.18292885]
[1721936666367,5.9138,169.1,168.99,1.18302412]
[1721936666568,5.914,169.09,168.97,66.18306808]
[1721936666760,5.9147,169.07,168.97,66.18306808]
[1721936667083,27.01,169.09,168.97,66.18306808]
[1721936667287,48.9532,169.12,168.97,66.18306808]
[1721936667484,5.9139,169.1,168.97,66.18306808]
[1721936667689,27.01,169.09,168.98,1.18318203]
[1721936667865,27.01,169.09,168.99,1.18314535]
[1721936668863,5.9147,169.07,168.99,1.18314535]
[1721936669172,5.915,169.07,168.94,1.18315372]
[1721936669374,27.01,169.09,168.94,1.18315372]
[1721936669767,5.9147,169.07,168.94,1.18315372]
[1721936669975,22.2733,169.05,168.92,1.18329566]
[1721936670179,5.9165,169.02,168.9,16.6626]
[1721936670395,5.9167,169.02,168.9,17.84614638]
[1721936670565,5.9167,169.02,168.9,1.18354638]
[1721936670989,27.01,169.03,168.9,1.18354638]
[1721936671178,27.01,169.03,168.88,1.1835987]
[1721936671488,27.01,169.0,168.88,1.1835987]
[1721936671665,27.9683,168.99,168.88,1.1835987]
[1721936671869,22.0506,168.99,168.85,1.18389166]
[1721936672174,5.9179,168.98,168.86,1.18390816]
[1721936672561,22.0506,168.99,168.86,1.18390816]
[1721936672761,22.4058,168.99,168.86,1.18390816]
[1721936674163,22.4058,168.99,168.86,21.18390816]
[1721936674390,22.4058,168.99,168.87,45.0]
[1721936674687,22.4058,168.99,168.88,21.18385925]
[1721936674889,22.4058,168.99,168.89,45.0]
[1721936675081,22.4058,168.99,168.9,20.0]
[1721936675276,22.4058,168.99,168.91,45.0]
[1721936676087,5.9179,168.98,168.84,1.18385844]
[1721936676265,5.9179,168.98,168.84,21.18385844]
[1721936676669,28.3233,168.99,168.84,21.18385844]
[1721936677382,5.9178,168.98,168.85,45.0]
[1721936677563,5.9182,168.97,168.86,21.18393054]
[1721936677763,5.9182,168.97,168.87,45.0]
[1721936677985,5.9182,168.97,168.88,20.0]
[1721936678287,28.3236,168.99,168.89,45.0]
[1721936678470,5.9183,168.97,168.89,45.0]
[1721936679164,27.8236,168.99,168.89,45.0]
[1721936679368,27.8234,168.99,168.89,45.0]
[1721936679884,21.9058,168.99,168.89,45.0]
[1721936680272,27.01,168.97,168.83,7.37074983]
[1721936680998,5.9185,168.96,168.83,7.37074983]
[1721936681495,32.9283,168.97,168.83,7.37074983]
[1721936681670,32.9283,168.97,168.84,20.0]
[1721936681871,32.9283,168.97,168.85,46.18408417]
[1721936682073,32.9283,168.97,168.86,20.0]
[1721936682276,32.9283,168.97,168.87,45.0]
[1721936682580,5.9185,168.96,168.88,1.18408564]
[1721936682781,5.9185,168.96,168.88,1.18408298]
[1721936682982,27.01,168.97,168.87,46.18408424]
[1721936683174,27.01,168.97,168.88,20.0]
[1721936683388,27.01,168.97,168.89,45.0]
[1721936683704,21.9058,168.99,168.9,1.18392984]
[1721936683889,21.9058,168.99,168.9,21.18392984]
[1721936684194,21.9058,168.99,168.91,45.0]
[1721936685382,5.9182,168.97,168.9,20.0]
[1721936685592,32.9282,168.97,168.84,20.0]
[1721936685792,27.01,168.97,168.85,1.18398886]
[1721936686394,27.01,168.97,168.86,1.18398931]
[1721936686713,5.9186,168.96,168.86,1.18398931]
[1721936687401,5.9186,168.96,168.86,21.18398931]
[1721936687609,0.3552,168.99,168.87,73.19405584]
[1721936687901,0.3552,168.99,168.88,20.0]
[1721936688100,0.3552,168.99,168.89,46.18355932]
[1721936688280,0.3552,168.99,168.9,21.18358352]
[1721936688481,0.3552,168.99,168.91,45.0]
[1721936688676,0.3552,168.99,168.92,21.18358524]
[1721936688905,0.3552,168.99,168.93,46.18359905]
[1721936689099,0.3552,168.99,168.94,20.0]
[1721936689405,0.3552,168.99,168.95,46.18359676]
[1721936690209,0.3552,168.99,168.95,45.0]
[1721936690406,0.3552,168.99,168.94,20.0]
[1721936690705,0.3552,168.99,168.88,21.18359808]
[1721936691004,0.3552,168.99,168.89,45.0]
[1721936691205,0.3552,168.99,168.9,21.18373363]
[1721936691380,0.3552,168.99,168.91,45.0]
[1721936691582,0.3552,168.99,168.92,21.18379758]
[1721936692095,0.3552,168.99,168.92,21.18382847]
[1721936692287,0.3552,168.99,168.93,45.0]
[1721936692498,0.3552,168.99,168.93,46.18371706]
[1721936692698,0.3552,168.99,168.93,45.0]
[1721936694778,0.3552,168.99,168.92,20.0]
[1721936694985,0.3552,168.99,168.86,1.18381528]
[1721936695183,5.9184,168.97,168.86,1.18381528]
[1721936695387,5.9186,168.96,168.84,1.18398038]
[1721936695608,5.9183,168.97,168.84,1.18398038]
[1721936696402,32.9279,168.98,168.84,1.18398038]
[1721936696606,32.9279,168.98,168.84,46.18398038]
[1721936696813,6.0961,168.96,168.83,7.37076313]
[1721936696997,32.929,168.95,168.83,6.1868]
[1721936697814,32.929,168.95,168.82,15.5051]
[1721936698297,32.929,168.95,168.83,20.0]
[1721936698497,32.929,168.95,168.81,21.18396313]
[1721936698811,5.9199,168.93,168.8,1.0282221]
[1721936699107,5.9193,168.94,168.8,1.18415111]
[1721936699605,5.9196,168.93,168.8,1.18415111]
[1721936699999,5.9193,168.94,168.8,46.18415111]
[1721936700196,5.9197,168.93,168.8,1.18415111]
[1721936700511,27.01,168.95,168.75,6.1252]
[1721936700512,32.931,168.89,168.75,6.1252]
[1721936700810,27.01,168.89,168.78,1.18445358]
[1721936700984,6.0961,168.9,168.78,1.18445358]
[1721936701186,5.921,168.89,168.76,1.18437863]
[1721936701400,6.0961,168.9,168.77,1.18450515]
[1721936701820,12.017,168.9,168.77,1.18450515]
[1721936702383,27.01,168.89,168.76,65.0]
[1721936702797,27.01,168.89,168.77,1.18462245]
[1721936703912,27.01,168.89,168.76,66.18451601]
[1721936704124,27.01,168.89,168.77,1.18452729]
[1721936704417,32.9312,168.89,168.76,66.18452729]
[1721936704611,32.9312,168.89,168.77,1.18452729]
[1721936704916,5.9214,168.88,168.77,1.18452729]
[1721936705121,5.9214,168.88,168.76,65.0]
[1721936705413,5.9219,168.87,168.76,20.0]
[1721936705726,5.9226,168.85,168.73,1.18472506]
[1721936705902,5.9228,168.84,168.73,1.18472506]
[1721936706417,5.9228,168.84,168.72,1.18485123]
[1721936706620,5.9224,168.85,168.72,1.18485123]
[1721936706808,5.9224,168.85,168.72,46.18485123]
[1721936707206,27.01,168.86,168.73,20.0]
[1721936707207,16.2256,168.83,168.73,20.0]
[1721936707415,6.4211,168.82,168.7,16.3963]
[1721936708290,6.4211,168.82,168.71,1.18514419]
[1721936708922,6.4211,168.82,168.71,46.18514419]
[1721936709420,12.3445,168.82,168.71,45.0]
[1721936709623,5.924,168.81,168.67,8.55157424]
[1721936709797,5.924,168.81,168.68,21.18516769]
[1721936710499,12.3446,168.82,168.68,21.18516769]
[1721936710708,6.4211,168.82,168.68,21.18516769]
[1721936711121,6.4211,168.82,168.69,45.0]
[1721936711314,6.4211,168.82,168.7,21.18491719]
[1721936711516,6.4211,168.82,168.71,45.0]
[1721936711692,6.4211,168.82,168.72,20.0]
[1721936711892,6.4211,168.82,168.73,45.0]
[1721936712115,6.4211,168.82,168.74,20.0]
[1721936712395,22.2515,168.87,168.75,78.5395]
[1721936712594,15.6681,168.87,168.76,21.18446183]
[1721936712894,380.5,168.89,168.77,46.18442963]
[1721936713096,22.2515,168.91,168.78,47.01]
[1721936713312,22.2515,168.91,168.79,46.18423024]
[1721936713497,22.2515,168.91,168.8,21.18421478]
[1721936713697,15.6681,168.91,168.81,45.0]
[1721936713892,15.6681,168.91,168.82,21.18412059]
[1721936714123,15.6681,168.91,168.83,45.0]
[1721936714294,15.6681,168.91,168.84,20.0]
[1721936714497,15.6681,168.91,168.83,45.0]
[1721936714703,32.931,168.89,168.75,7.71404571]
[1721936714907,12.5048,168.88,168.76,20.0]
[1721936715524,12.5048,168.88,168.7,22.6467]
[1721936715525,5.9226,168.85,168.7,22.6467]
[1721936715713,27.01,168.86,168.7,22.6467]
[1721936715912,27.01,168.86,168.7,23.83159923]
[1721936716122,5.9235,168.82,168.67,3.39798489]
[1721936716329,6.5834,168.81,168.67,2.21362422]
[1721936716505,27.01,168.8,168.67,2.21362422]
[1721936717513,27.01,168.8,168.67,1.02848327]
[1721936717722,27.01,168.8,168.68,1.18526375]
[1721936718425,12.5072,168.81,168.66,34.56779473]
[1721936718426,12.5072,168.81,168.66,8.74299567]
[1721936718833,15.6681,168.79,168.66,1.02829473]
[1721936719140,5.9263,168.74,168.6,16.1172]
[1721936719422,5.9263,168.74,168.57,6.5295]
[1721936719423,6.5834,168.73,168.57,6.5295]
[1721936719640,6.5834,168.73,168.58,1.18582029]
[1721936721112,6.5834,168.73,168.58,46.18582029]
[1721936721837,6.5834,168.73,168.59,20.0]
[1721936722045,6.5834,168.73,168.6,46.18560942]
[1721936722214,6.5834,168.73,168.61,21.18558497]
[1721936722416,6.5834,168.73,168.62,45.0]
[1721936722612,6.5834,168.73,168.63,20.0]
[1721936722917,6.5834,168.73,168.64,45.0]
[1721936723112,6.5834,168.73,168.65,20.0]
[1721936723318,6.5834,168.73,168.66,45.0]
[1721936724025,15.7774,168.72,168.65,20.0]
[1721936724216,15.7774,168.72,168.58,1.18570108]
[1721936725424,5.9274,168.71,168.58,1.18581898]
[1721936725750,15.7774,168.72,168.56,5.43623733]
[1721936726045,21.7044,168.72,168.58,1.1858598]
[1721936726218,5.9274,168.71,168.58,1.1858598]
[1721936726413,5.9274,168.71,168.56,3.01675814]
[1721936726655,5.9273,168.71,168.56,3.01675814]
[1721936726941,15.7774,168.72,168.56,68.01675814]
[1721936728930,21.7044,168.72,168.56,68.01675814]
[1721936729320,15.7774,168.72,168.56,68.01675814]
[1721936729919,5.9276,168.7,168.56,3.01675814]
[1721936730130,5.9276,168.7,168.56,1.83078517]
[1721936730312,15.7774,168.72,168.56,1.83078517]
[1721936730517,5.9283,168.68,168.56,0.8022761]
[1721936730713,5.928,168.7,168.57,1.18614157]
[1721936730940,5.928,168.7,168.58,1.18604476]
[1721936731136,15.7774,168.72,168.58,1.18604476]
[1721936732625,6.18001909,168.79,168.58,1.18604476]
[1721936732626,22.4396,168.77,168.6,6.2986]
[1721936732832,22.4396,168.77,168.61,66.18541791]
[1721936734116,22.4396,168.77,168.63,30.4]
[1721936734318,22.4396,168.77,168.64,66.18518673]
[1721936734542,22.4396,168.77,168.65,1.18518773]
[1721936736018,5.9256,168.76,168.65,1.18518773]
[1721936736326,28.3648,168.77,168.65,1.18518773]
[1721936736534,22.4396,168.77,168.65,1.18546404]
[1721936736859,22.7948,168.77,168.65,1.18546404]
[1721936737358,28.72,168.77,168.64,65.0]
[1721936737525,22.7948,168.77,168.65,1.18551328]
[1721936739246,5.9271,168.72,168.6,7.48428368]
[1721936739443,5.9271,168.72,168.6,6.2986]
[1721936739647,5.9272,168.72,168.6,6.2986]
[1721936739843,50.4,168.74,168.59,16.4546]
[1721936739844,30.4,168.74,168.59,16.4546]
[1721936740038,5.9278,168.7,168.56,8.28089613]
[1721936740225,30.4,168.74,168.56,8.28089613]
[1721936740426,5.9266,168.73,168.56,8.28089613]
[1721936740735,28.7203,168.77,168.57,7.03723389]
[1721936740939,22.7948,168.77,168.58,1.18569214]
[1721936741154,5.9259,168.75,168.58,1.18569214]
[1721936741321,5.9259,168.75,168.58,66.18569214]
[1721936741526,22.7948,168.77,168.58,66.18569214]
[1721936741738,22.7948,168.77,168.59,21.9337]
[1721936741947,22.7948,168.77,168.6,66.18540137]
[1721936742151,22.7948,168.77,168.61,1.18544152]
[1721936742850,5.9262,168.75,168.61,1.18544152]
[1721936743156,5.9261,168.75,168.61,1.18544152]
[1721936743327,5.9256,168.76,168.61,1.18544152]
[1721936743525,22.7948,168.77,168.61,1.18544152]
[1721936744056,22.7948,168.77,168.61,31.58544152]
[1721936744236,22.7948,168.77,168.62,65.0]
[1721936744441,0.3552,168.77,168.63,22.76204773]
[1721936744644,0.3552,168.77,168.64,65.0]
[1721936744949,0.3552,168.77,168.65,1.18507716]
[1721936747132,0.3552,168.77,168.65,1.18507716]
[1721936747746,0.3552,168.77,168.65,1.18546638]
[1721936748048,0.3552,168.77,168.63,21.5768]
[1721936748259,5.9259,168.76,168.63,21.5768]
[1721936748558,5.9259,168.75,168.63,21.5768]
[1721936748745,6.4038,168.74,168.63,21.5768]
[1721936748941,6.4038,168.74,168.64,1.18573473]
[1721936749255,0.3552,168.77,168.63,22.76232372]
[1721936749771,36.8038,168.78,168.63,22.76232372]
[1721936749940,6.4038,168.78,168.64,45.0]
[1721936750141,6.4038,168.78,168.65,21.18533262]
[1721936750358,6.4038,168.78,168.66,45.0]
[1721936750559,6.4038,168.78,168.67,20.0]
[1721936750756,6.4038,168.78,168.68,45.0]
[1721936751066,6.4038,168.78,168.69,20.0]
[1721936751964,15.1534,168.81,168.7,1.18544532]
[1721936752164,15.1534,168.81,168.71,1.18516476]
[1721936752464,6.2937,168.83,168.72,22.0363]
[1721936752671,6.2937,168.83,168.73,66.18499802]
[1721936752876,16.0505,168.85,168.74,1.18484633]
[1721936753956,16.0505,168.85,168.73,65.0]
[1721936754364,5.9235,168.82,168.73,65.0]
[1721936754578,5.9231,168.83,168.73,65.0]
[1721936754765,16.0505,168.85,168.73,65.0]
[1721936754946,16.0505,168.85,168.74,1.18510956]
[1721936755351,21.973,168.85,168.74,1.18510956]
[1721936755671,16.0505,168.85,168.74,1.18495401]
[1721936756464,6.2937,168.87,168.74,1.18495401]
[1721936756957,380.5,168.88,168.75,16.0262]
[1721936757163,380.5,168.88,168.76,66.18463357]
[1721936757350,380.5,168.88,168.76,65.0]
[1721936757750,15.4007,168.89,168.76,65.0]
[1721936757968,5.9224,168.85,168.76,65.0]
[1721936758775,5.9228,168.84,168.76,65.0]
[1721936759280,5.9234,168.83,168.71,15.8803]
[1721936759672,5.9228,168.84,168.71,15.8803]
[1721936760174,45.2038,168.88,168.71,15.8803]
[1721936760354,40.0,168.87,168.72,45.0]
[1721936760673,36.8099,168.84,168.71,15.8803]
[1721936760968,5.9238,168.81,168.71,15.8803]
[1721936761175,20.0,168.83,168.71,15.8803]
[1721936761499,6.4099,168.84,168.71,17.06555807]
[1721936761788,36.8922,168.88,168.71,17.06555807]
[1721936762074,36.8922,168.88,168.72,65.0]
[1721936762369,5.9217,168.87,168.73,1.18485234]
[1721936762571,5.9218,168.87,168.72,66.18487794]
[1721936762791,43.1688,168.88,168.72,66.18487794]
[1721936762948,0.3552,168.88,168.73,6.3526]
[1721936763155,0.3552,168.88,168.75,16.3383]
[1721936763461,0.3552,168.88,168.76,65.0]
[1721936763875,5.9218,168.87,168.76,65.0]
[1721936764261,0.3552,168.88,168.76,65.0]
[1721936764576,30.7552,168.88,168.76,65.0]
[1721936764781,20.0,168.87,168.76,65.0]
[1721936764973,25.9217,168.87,168.76,65.0]
[1721936765176,0.3552,168.88,168.77,1.18482887]
[1721936765475,0.3552,168.88,168.78,1.18463871]
[1721936767477,0.3552,168.88,168.76,65.0]
[1721936767680,5.9218,168.87,168.76,65.0]
[1721936767880,0.3552,168.88,168.76,65.0]
[1721936768456,0.3552,168.88,168.75,16.3383]
[1721936768457,5.9231,168.83,168.75,16.3383]
[1721936768960,5.9236,168.82,168.73,6.3526]
[1721936769162,5.9231,168.84,168.73,6.3526]
[1721936769464,5.9235,168.82,168.73,6.3526]
[1721936769660,6.0171,168.84,168.69,6.1381]
[1721936769877,16.3097,168.79,168.67,15.146]
[1721936770074,5.9259,168.75,168.67,15.146]
[1721936770255,5.9256,168.76,168.67,15.146]
[1721936770582,5.9261,168.75,168.65,6.1381]
[1721936770789,5.9255,168.77,168.65,6.1381]
[1721936770970,5.9258,168.76,168.65,6.1381]
[1721936771376,16.3097,168.79,168.65,6.1381]
[1721936771558,6.2117,168.76,168.63,16.3031]
[1721936771878,5.9266,168.73,168.63,16.3031]
[1721936772459,25.9262,168.75,168.63,16.3031]
[1721936773382,25.9259,168.75,168.64,1.18583476]
[1721936773675,20.0,168.75,168.64,45.0]
[1721936773882,25.9262,168.75,168.64,46.1857291]
[1721936774061,5.9264,168.74,168.64,45.0]
[1721936774261,20.0,168.73,168.64,45.0]
[1721936774871,25.9268,168.73,168.64,45.0]
[1721936775185,20.0,168.73,168.63,16.3031]
[1721936775372,5.927,168.72,168.63,16.3031]
[1721936775570,5.9273,168.71,168.63,16.3031]
[1721936775866,35.8878,168.7,168.59,15.6739]
[1721936776178,5.929,168.67,168.57,6.3353]
[1721936776392,5.9286,168.68,168.57,6.3353]
[1721936776761,5.9281,168.69,168.57,6.3353]
[1721936777074,35.8878,168.7,168.57,6.3353]
[1721936777075,41.8158,168.7,168.57,6.3353]
[1721936777280,5.9284,168.68,168.57,6.3353]
[1721936777476,25.9289,168.67,168.57,6.3353]
[1721936777682,5.9289,168.67,168.57,6.3353]
[1721936777882,5.9283,168.69,168.57,6.3353]
[1721936778083,20.0,168.68,168.57,6.3353]
[1721936778292,20.0,168.68,168.58,20.0]
[1721936778783,20.0,168.69,168.59,45.0]
[1721936780691,20.0,168.69,168.58,20.0]
[1721936780692,5.9295,168.65,168.58,20.0]
[1721936780865,50.4,168.69,168.58,21.18630167]
[1721936781060,5.929,168.67,168.58,20.0]
[1721936781281,50.4,168.69,168.58,20.0]
[1721936781866,5.9287,168.67,168.58,20.0]
[1721936782790,5.9284,168.68,168.58,20.0]
[1721936782981,20.0,168.67,168.58,20.0]
[1721936783171,6.4794,168.66,168.56,0.8022761]
[1721936783366,5.9312,168.6,168.56,0.8022761]
[1721936784167,5.9308,168.61,168.56,0.8022761]
[1721936784686,5.9305,168.62,168.56,0.8022761]
[1721936784984,5.9302,168.63,168.56,0.8022761]
[1721936785184,5.9308,168.61,168.56,0.8022761]